[Event "Live Chess"]
[Site "Chess.com"]
[Date "2024.06.02"]
[Round "-"]
[White "Cruiseylee78"]
[Black "Dhaydon19"]
[Result "0-1"]
[WhiteElo "1693"]
[BlackElo "2674"]
[TimeControl "300"]
[EndTime "21:57:51 PDT"]
[Termination "Dhaydon19 won by resignation"]

1. d4 {[%clk 0:04:48.9]} 1... d5 {[%clk 0:04:59]} 2. Bf4 {[%clk 0:04:46.7]} 2...
e6 {[%clk 0:04:58.4]} 3. e3 {[%clk 0:04:44.6]} 3... Bd6 {[%clk 0:04:57.9]} 4.
Bg3 {[%clk 0:04:43.6]} 4... Nf6 {[%clk 0:04:56.9]} 5. Nf3 {[%clk 0:04:42.1]}
5... Qe7 {[%clk 0:04:56.5]} 6. Bd3 {[%clk 0:04:41.1]} 6... Nbd7 {[%clk
0:04:55.8]} 7. c3 {[%clk 0:04:37.8]} 7... e5 {[%clk 0:04:54.9]} 8. Bc2 {[%clk
0:04:20.8]} 8... e4 {[%clk 0:04:53.6]} 9. Ng5 {[%clk 0:04:19]} 9... h6 {[%clk
0:04:50.7]} 10. Nh3 {[%clk 0:04:15.8]} 10... Nf8 {[%clk 0:04:48.6]} 11. Bxd6
{[%clk 0:04:09.9]} 11... Qxd6 {[%clk 0:04:44.6]} 12. Nf4 {[%clk 0:04:08.6]}
12... Bg4 {[%clk 0:04:42.6]} 13. f3 {[%clk 0:04:01.1]} 13... exf3 {[%clk
0:04:39.8]} 14. gxf3 {[%clk 0:04:01]} 14... Bd7 {[%clk 0:04:34.1]} 15. Rg1
{[%clk 0:03:37.3]} 15... g5 {[%clk 0:04:29.6]} 16. Ne2 {[%clk 0:03:24.2]} 16...
Qxh2 {[%clk 0:04:27.7]} 17. Qd3 {[%clk 0:03:17]} 17... Ng6 {[%clk 0:04:21.2]}
18. Nd2 {[%clk 0:03:14.3]} 18... O-O-O {[%clk 0:04:16.9]} 19. O-O-O {[%clk
0:03:13.1]} 19... Qd6 {[%clk 0:04:11.4]} 20. Nb3 {[%clk 0:03:04.6]} 20... Nh4
{[%clk 0:04:06.6]} 21. Rg3 {[%clk 0:02:53.1]} 21... Bf5 {[%clk 0:04:03.6]} 22.
e4 {[%clk 0:02:49.5]} 22... dxe4 {[%clk 0:04:02.2]} 23. fxe4 {[%clk 0:02:48.8]}
23... Bxe4 {[%clk 0:04:01.9]} 24. Qb5 {[%clk 0:02:38.2]} 24... Bxc2 {[%clk
0:04:00.6]} 25. Kxc2 {[%clk 0:02:37.5]} 25... a6 {[%clk 0:03:59.4]} 26. Qc4
{[%clk 0:02:27]} 26... Nd5 {[%clk 0:03:55.3]} 27. Nc5 {[%clk 0:02:09.5]} 27...
Rhe8 {[%clk 0:03:45.4]} 28. Re1 {[%clk 0:01:48.8]} 28... Qg6+ {[%clk 0:03:30.1]}
29. Kb3 {[%clk 0:01:44.6]} 29... Qb6+ {[%clk 0:03:21]} 30. Kc2 {[%clk
0:01:40.9]} 30... Qb5 {[%clk 0:03:17.3]} 31. Qxb5 {[%clk 0:01:38.2]} 31... axb5
{[%clk 0:03:15.4]} 32. b4 {[%clk 0:01:24.6]} 32... f5 {[%clk 0:03:12.9]} 33.
Rgg1 {[%clk 0:01:04]} 33... Nf3 {[%clk 0:03:10.4]} 0-1

[Event "Live Chess"]
[Site "Chess.com"]
[Date "2024.06.02"]
[Round "-"]
[White "elephantgerrald"]
[Black "juniortay"]
[Result "0-1"]
[WhiteElo "785"]
[BlackElo "2433"]
[TimeControl "300"]
[EndTime "21:58:18 PDT"]
[Termination "juniortay won by checkmate"]

1. e4 {[%clk 0:04:56.8]} 1... e5 {[%clk 0:04:59.2]} 2. Nf3 {[%clk 0:04:55]} 2...
Nf6 {[%clk 0:04:58.8]} 3. Nxe5 {[%clk 0:04:53.8]} 3... Nc6 {[%clk 0:04:58.4]} 4.
Nxc6 {[%clk 0:04:52]} 4... dxc6 {[%clk 0:04:58.3]} 5. e5 {[%clk 0:04:50.2]} 5...
Ne4 {[%clk 0:04:56.4]} 6. Qe2 {[%clk 0:04:49]} 6... Bf5 {[%clk 0:04:49.4]} 7. d3
{[%clk 0:04:46.9]} 7... Nc5 {[%clk 0:04:48.4]} 8. Nc3 {[%clk 0:04:41.7]} 8...
Qd7 {[%clk 0:04:47]} 9. Be3 {[%clk 0:04:39.4]} 9... O-O-O {[%clk 0:04:45.8]} 10.
O-O-O {[%clk 0:04:33.7]} 10... Be7 {[%clk 0:04:41.6]} 11. h4 {[%clk 0:04:21]}
11... f6 {[%clk 0:04:39.3]} 12. exf6 {[%clk 0:04:17]} 12... Bxf6 {[%clk
0:04:38.3]} 13. g4 {[%clk 0:04:14.4]} 13... Bxg4 {[%clk 0:04:27.2]} 14. Qd2
{[%clk 0:04:12.9]} 14... Bxd1 {[%clk 0:04:20.6]} 15. Ne2 {[%clk 0:04:10.2]}
15... Bxe2 {[%clk 0:04:19.5]} 16. Qxe2 {[%clk 0:04:07.6]} 16... Ne6 {[%clk
0:04:14.3]} 17. Bh3 {[%clk 0:04:04.1]} 17... Rhe8 {[%clk 0:04:13.6]} 18. d4
{[%clk 0:04:02.2]} 18... Kb8 {[%clk 0:04:12.6]} 19. Qc4 {[%clk 0:03:56.5]} 19...
Qd5 {[%clk 0:04:11.2]} 20. Qa4 {[%clk 0:03:53.1]} 20... Qxh1+ {[%clk 0:04:08.7]}
21. Kd2 {[%clk 0:03:50.9]} 21... Qxh3 {[%clk 0:04:06.1]} 22. d5 {[%clk
0:03:48.9]} 22... Rxd5+ {[%clk 0:04:04.7]} 23. Ke2 {[%clk 0:03:41.7]} 23... b6
{[%clk 0:04:03.6]} 24. Bxb6 {[%clk 0:03:35.7]} 24... axb6 {[%clk 0:04:01.9]} 25.
Qxc6 {[%clk 0:03:33.9]} 25... Qg4+ {[%clk 0:04:00.2]} 26. f3 {[%clk 0:03:32.3]}
26... Qg2+ {[%clk 0:03:59.1]} 27. Ke3 {[%clk 0:03:31.1]} 27... Qd2+ {[%clk
0:03:51.6]} 28. Ke4 {[%clk 0:03:28.7]} 28... Qf4+ {[%clk 0:03:48.4]} 29. Kxd5
{[%clk 0:03:25.1]} 29... Qd4# {[%clk 0:03:45.8]} 0-1

[Event "Live Chess"]
[Site "Chess.com"]
[Date "2024.06.02"]
[Round "-"]
[White "Duke_of_Bebington"]
[Black "booktrunk"]
[Result "1-0"]
[WhiteElo "1652"]
[BlackElo "1518"]
[TimeControl "300"]
[EndTime "22:01:01 PDT"]
[Termination "Duke_of_Bebington won by resignation"]

1. e4 {[%clk 0:04:57.7]} 1... b6 {[%clk 0:04:50.2]} 2. d4 {[%clk 0:04:55.5]}
2... Bb7 {[%clk 0:04:47.2]} 3. Bd3 {[%clk 0:04:55]} 3... h6 {[%clk 0:04:38.6]}
4. Nf3 {[%clk 0:04:49.3]} 4... d6 {[%clk 0:04:35.7]} 5. Qe2 {[%clk 0:04:43.2]}
5... g6 {[%clk 0:04:34.5]} 6. d5 {[%clk 0:04:38.2]} 6... Bg7 {[%clk 0:04:32.6]}
7. c3 {[%clk 0:04:26.1]} 7... Nd7 {[%clk 0:04:30.5]} 8. O-O {[%clk 0:04:22.6]}
8... Ne5 {[%clk 0:04:28.6]} 9. Nxe5 {[%clk 0:04:19.9]} 9... Bxe5 {[%clk
0:04:26.5]} 10. Bb5+ {[%clk 0:04:14.9]} 10... Kf8 {[%clk 0:04:19.1]} 11. f4
{[%clk 0:04:10.8]} 11... Bg7 {[%clk 0:04:16.6]} 12. Be3 {[%clk 0:04:07.7]} 12...
a6 {[%clk 0:04:14.1]} 13. Bd3 {[%clk 0:04:05.2]} 13... Qd7 {[%clk 0:03:59.1]}
14. Nd2 {[%clk 0:03:58.4]} 14... b5 {[%clk 0:03:53]} 15. a3 {[%clk 0:03:56.8]}
15... c6 {[%clk 0:03:51.1]} 16. c4 {[%clk 0:03:52.9]} 16... cxd5 {[%clk
0:03:48.8]} 17. cxd5 {[%clk 0:03:51.3]} 17... Bxb2 {[%clk 0:03:41.6]} 18. Ra2
{[%clk 0:03:45.2]} 18... Bg7 {[%clk 0:03:38]} 19. Qf2 {[%clk 0:03:33.3]} 19...
e6 {[%clk 0:03:36.6]} 20. dxe6 {[%clk 0:03:21.6]} 20... Qxe6 {[%clk 0:03:33.8]}
21. f5 {[%clk 0:03:19.9]} 21... gxf5 {[%clk 0:03:31.8]} 22. exf5 {[%clk
0:03:17.8]} 22... Qf6 {[%clk 0:03:26.3]} 23. Ne4 {[%clk 0:03:11.1]} 23... Bxe4
{[%clk 0:03:21.1]} 24. Bxe4 {[%clk 0:03:09.7]} 24... Re8 {[%clk 0:03:17.6]} 25.
Qf3 {[%clk 0:03:02.5]} 25... Qe5 {[%clk 0:03:10.9]} 26. Bf4 {[%clk 0:02:48.1]}
26... Qxe4 {[%clk 0:03:07.6]} 27. Bxd6+ {[%clk 0:02:46.4]} 27... Re7 {[%clk
0:03:05.3]} 28. Qxe4 {[%clk 0:02:44.4]} 1-0

[Event "Live Chess"]
[Site "Chess.com"]
[Date "2024.06.02"]
[Round "-"]
[White "rekosheten"]
[Black "McFim"]
[Result "1-0"]
[WhiteElo "2473"]
[BlackElo "1657"]
[TimeControl "300"]
[EndTime "22:01:16 PDT"]
[Termination "rekosheten won by resignation"]

1. e4 {[%clk 0:04:58.7]} 1... c6 {[%clk 0:04:58.2]} 2. d4 {[%clk 0:04:56.7]}
2... d5 {[%clk 0:04:56.7]} 3. exd5 {[%clk 0:04:56.6]} 3... cxd5 {[%clk
0:04:56.6]} 4. c4 {[%clk 0:04:55.4]} 4... Nf6 {[%clk 0:04:54.1]} 5. Nc3 {[%clk
0:04:53.6]} 5... e6 {[%clk 0:04:52.5]} 6. Nf3 {[%clk 0:04:47.5]} 6... Be7 {[%clk
0:04:49.9]} 7. cxd5 {[%clk 0:04:36.8]} 7... Nxd5 {[%clk 0:04:47.7]} 8. Bd3
{[%clk 0:04:27]} 8... Nf6 {[%clk 0:04:40]} 9. O-O {[%clk 0:04:24.8]} 9... O-O
{[%clk 0:04:37.9]} 10. Qe2 {[%clk 0:04:19.8]} 10... Bd7 {[%clk 0:04:36.1]} 11.
Bg5 {[%clk 0:04:13.9]} 11... Bc6 {[%clk 0:04:31.1]} 12. Rad1 {[%clk 0:04:11.6]}
12... Nbd7 {[%clk 0:04:25]} 13. Ne5 {[%clk 0:04:03.3]} 13... Rc8 {[%clk
0:04:12.1]} 14. Rfe1 {[%clk 0:03:49.4]} 14... Re8 {[%clk 0:04:08.1]} 15. Nxf7
{[%clk 0:03:39.8]} 15... Kxf7 {[%clk 0:04:06]} 16. Qxe6+ {[%clk 0:03:35.8]}
16... Kf8 {[%clk 0:04:04.3]} 17. Bc4 {[%clk 0:03:33.8]} 17... Bd5 {[%clk
0:03:57.1]} 18. Nxd5 {[%clk 0:03:18.3]} 18... Rxc4 {[%clk 0:03:40.1]} 19. Nxe7
{[%clk 0:03:13.4]} 19... Rxe7 {[%clk 0:03:32.8]} 20. Qxc4 {[%clk 0:03:11.3]}
20... Rxe1+ {[%clk 0:03:30.2]} 21. Rxe1 {[%clk 0:03:11.2]} 21... h6 {[%clk
0:03:24.6]} 22. Bh4 {[%clk 0:03:06.5]} 22... Qa5 {[%clk 0:02:58.8]} 23. b4
{[%clk 0:02:45.4]} 23... Qf5 {[%clk 0:02:48.2]} 24. h3 {[%clk 0:02:35.8]} 24...
g5 {[%clk 0:02:45.1]} 25. Bg3 {[%clk 0:02:32.4]} 1-0

[Event "Live Chess"]
[Site "Chess.com"]
[Date "2024.06.02"]
[Round "-"]
[White "IgorSchukin"]
[Black "RockTroll"]
[Result "0-1"]
[WhiteElo "1778"]
[BlackElo "2179"]
[TimeControl "300"]
[EndTime "22:04:03 PDT"]
[Termination "RockTroll won by resignation"]

1. e4 {[%clk 0:04:57.8]} 1... c6 {[%clk 0:04:58.4]} 2. d4 {[%clk 0:04:55.9]}
2... d5 {[%clk 0:04:58]} 3. Nc3 {[%clk 0:04:55.4]} 3... dxe4 {[%clk 0:04:57.5]}
4. Nxe4 {[%clk 0:04:54.8]} 4... Nf6 {[%clk 0:04:57.2]} 5. Nxf6+ {[%clk
0:04:53.7]} 5... exf6 {[%clk 0:04:57.1]} 6. g3 {[%clk 0:04:53]} 6... Bd6 {[%clk
0:04:55.8]} 7. Bg2 {[%clk 0:04:51.7]} 7... O-O {[%clk 0:04:55.1]} 8. Ne2 {[%clk
0:04:51.3]} 8... Re8 {[%clk 0:04:54.1]} 9. O-O {[%clk 0:04:50.4]} 9... Bg4
{[%clk 0:04:50.3]} 10. Be3 {[%clk 0:04:48.2]} 10... Nd7 {[%clk 0:04:46.7]} 11.
Qd2 {[%clk 0:04:46.8]} 11... Nf8 {[%clk 0:04:40]} 12. c4 {[%clk 0:04:45.2]}
12... f5 {[%clk 0:04:20.4]} 13. h3 {[%clk 0:04:43.2]} 13... Bxe2 {[%clk
0:04:19]} 14. Qxe2 {[%clk 0:04:40.4]} 14... f4 {[%clk 0:04:18.4]} 15. gxf4
{[%clk 0:04:37.4]} 15... Bxf4 {[%clk 0:04:17.7]} 16. Qd2 {[%clk 0:04:36.2]}
16... Bc7 {[%clk 0:04:12]} 17. c5 {[%clk 0:04:30.2]} 17... Qh4 {[%clk
0:04:01.4]} 18. Bg5 {[%clk 0:04:23.2]} 18... Qh5 {[%clk 0:03:59.9]} 19. Rae1
{[%clk 0:04:16.4]} 19... Ne6 {[%clk 0:03:58.9]} 20. Be3 {[%clk 0:04:11]} 20...
Rad8 {[%clk 0:03:58]} 21. Qd1 {[%clk 0:04:02.7]} 21... Qh4 {[%clk 0:03:51.5]}
22. Qg4 {[%clk 0:03:37.9]} 22... Qf6 {[%clk 0:03:45]} 23. Rd1 {[%clk 0:03:30.8]}
23... g6 {[%clk 0:03:32.4]} 24. d5 {[%clk 0:03:26.5]} 24... h5 {[%clk
0:03:30.1]} 25. Qf3 {[%clk 0:03:15.8]} 25... Qe5 {[%clk 0:03:27.8]} 26. Qg3
{[%clk 0:03:08.7]} 26... Qxb2 {[%clk 0:03:17.8]} 27. d6 {[%clk 0:03:02.2]} 27...
Ba5 {[%clk 0:03:17]} 28. Be4 {[%clk 0:02:47.7]} 28... Qf6 {[%clk 0:03:08.8]} 29.
f4 {[%clk 0:02:33.8]} 29... Nxc5 {[%clk 0:03:06.8]} 30. Bxc5 {[%clk 0:02:00]}
30... Rxe4 {[%clk 0:03:04.9]} 31. Bxa7 {[%clk 0:01:54]} 31... b6 {[%clk
0:03:01.4]} 32. Qf3 {[%clk 0:01:33.9]} 32... Rd4 {[%clk 0:02:32.6]} 33. Rb1
{[%clk 0:01:23]} 33... Rd2 {[%clk 0:02:11.5]} 34. Bxb6 {[%clk 0:01:18]} 34...
Bxb6+ {[%clk 0:02:10.2]} 35. Rxb6 {[%clk 0:01:11.7]} 35... Qd4+ {[%clk
0:02:09.1]} 36. Kh1 {[%clk 0:01:06.8]} 36... Qxb6 {[%clk 0:02:08.2]} 0-1

[Event "Live Chess"]
[Site "Chess.com"]
[Date "2024.06.02"]
[Round "-"]
[White "elephantgerrald"]
[Black "Tushinskiy"]
[Result "0-1"]
[WhiteElo "785"]
[BlackElo "2269"]
[TimeControl "300"]
[EndTime "22:04:21 PDT"]
[Termination "Tushinskiy won by checkmate"]

1. e4 {[%clk 0:04:54.7]} 1... e5 {[%clk 0:04:56.1]} 2. Nf3 {[%clk 0:04:53.7]}
2... d6 {[%clk 0:04:55.6]} 3. Bc4 {[%clk 0:04:52.4]} 3... Bg4 {[%clk 0:04:52.4]}
4. Kf1 {[%clk 0:04:51]} 4... Nd7 {[%clk 0:04:49.2]} 5. Ke2 {[%clk 0:04:49.7]}
5... Ngf6 {[%clk 0:04:47.8]} 6. Re1 {[%clk 0:04:47.9]} 6... Nxe4 {[%clk
0:04:46.2]} 7. Kf1 {[%clk 0:04:45.7]} 7... Nef6 {[%clk 0:04:45.3]} 8. Kg1 {[%clk
0:04:44.6]} 8... Be7 {[%clk 0:04:44.6]} 9. h3 {[%clk 0:04:42]} 9... Bh5 {[%clk
0:04:43.5]} 10. g4 {[%clk 0:04:40.3]} 10... Bg6 {[%clk 0:04:42.3]} 11. Ng5
{[%clk 0:04:37.7]} 11... O-O {[%clk 0:04:40.8]} 12. h4 {[%clk 0:04:33.7]} 12...
h5 {[%clk 0:04:38.3]} 13. d3 {[%clk 0:04:26.4]} 13... Nxg4 {[%clk 0:04:34.5]}
14. Be3 {[%clk 0:04:18.2]} 14... Ndf6 {[%clk 0:04:28.9]} 15. Be6 {[%clk
0:04:11.9]} 15... fxe6 {[%clk 0:04:27.1]} 16. Nxe6 {[%clk 0:04:10.5]} 16... Qd7
{[%clk 0:04:25]} 17. Nxf8 {[%clk 0:03:52.4]} 17... Rxf8 {[%clk 0:04:24.9]} 18.
Nc3 {[%clk 0:03:49.2]} 18... Nxe3 {[%clk 0:04:20.5]} 19. Rxe3 {[%clk 0:03:45.9]}
19... Ng4 {[%clk 0:04:19.3]} 20. Rg3 {[%clk 0:03:42.9]} 20... Bxh4 {[%clk
0:04:14.5]} 21. Rf3 {[%clk 0:03:38]} 21... Bxf2+ {[%clk 0:04:10.4]} 22. Kf1
{[%clk 0:03:35.8]} 22... Ne3+ {[%clk 0:04:04.8]} 23. Kxf2 {[%clk 0:03:32.6]}
23... Nxd1+ {[%clk 0:04:03.1]} 24. Rxd1 {[%clk 0:03:30.5]} 24... Rxf3+ {[%clk
0:04:01]} 25. Kxf3 {[%clk 0:03:29.4]} 25... Qg4+ {[%clk 0:04:00.4]} 26. Kf2
{[%clk 0:03:27.6]} 26... c6 {[%clk 0:03:59.5]} 27. Rg1 {[%clk 0:03:25.6]} 27...
Qh4+ {[%clk 0:03:57.7]} 28. Rg3 {[%clk 0:03:23.4]} 28... Bf5 {[%clk 0:03:55.8]}
29. Ne2 {[%clk 0:03:17.8]} 29... g5 {[%clk 0:03:45.6]} 30. Kf3 {[%clk 0:03:09]}
30... Bg4+ {[%clk 0:03:43.9]} 31. Kf2 {[%clk 0:03:06.7]} 31... Bxe2 {[%clk
0:03:42.6]} 32. Kg2 {[%clk 0:03:01.2]} 32... Bg4 {[%clk 0:03:37.1]} 33. Rxg4
{[%clk 0:02:56.4]} 33... Qxg4+ {[%clk 0:03:35.1]} 34. Kf2 {[%clk 0:02:54]} 34...
Qf4+ {[%clk 0:03:35]} 35. Ke2 {[%clk 0:02:52.8]} 35... g4 {[%clk 0:03:34.9]} 36.
c4 {[%clk 0:02:50.8]} 36... g3 {[%clk 0:03:34.8]} 37. b4 {[%clk 0:02:50]} 37...
g2 {[%clk 0:03:34.7]} 38. d4 {[%clk 0:02:49.5]} 38... g1=Q {[%clk 0:03:34.6]}
39. Kd3 {[%clk 0:02:48.1]} 39... Qgf2 {[%clk 0:03:34.5]} 40. Kc3 {[%clk
0:02:46.9]} 40... Q4d2+ {[%clk 0:03:34.4]} 41. Kb3 {[%clk 0:02:45.7]} 41...
Qxa2+ {[%clk 0:03:33.2]} 42. Kc3 {[%clk 0:02:44.2]} 42... Qfd2# {[%clk 0:03:32]}
0-1

[Event "Live Chess"]
[Site "Chess.com"]
[Date "2024.06.02"]
[Round "-"]
[White "KGreenGator"]
[Black "KeithArkell"]
[Result "0-1"]
[WhiteElo "1776"]
[BlackElo "2428"]
[TimeControl "300"]
[EndTime "22:04:56 PDT"]
[Termination "KeithArkell won by checkmate"]

1. c4 {[%clk 0:04:58.7]} 1... b6 {[%clk 0:04:57.6]} 2. d4 {[%clk 0:04:56.9]}
2... Bb7 {[%clk 0:04:57]} 3. Nc3 {[%clk 0:04:54.8]} 3... e6 {[%clk 0:04:55.5]}
4. e4 {[%clk 0:04:53.3]} 4... Bb4 {[%clk 0:04:53.6]} 5. Qd3 {[%clk 0:04:47.3]}
5... Bxc3+ {[%clk 0:04:52.1]} 6. bxc3 {[%clk 0:04:45.7]} 6... d6 {[%clk
0:04:51]} 7. Nf3 {[%clk 0:04:38.3]} 7... Nd7 {[%clk 0:04:48.7]} 8. Be2 {[%clk
0:04:36.2]} 8... Ne7 {[%clk 0:04:46.6]} 9. a4 {[%clk 0:04:33.8]} 9... a5 {[%clk
0:04:43.8]} 10. O-O {[%clk 0:04:23.6]} 10... e5 {[%clk 0:04:42.2]} 11. Be3
{[%clk 0:04:12.1]} 11... O-O {[%clk 0:04:40.5]} 12. Rfd1 {[%clk 0:04:07.3]}
12... f5 {[%clk 0:04:39]} 13. Ng5 {[%clk 0:03:38.6]} 13... fxe4 {[%clk
0:04:22.1]} 14. Nxe4 {[%clk 0:03:36.8]} 14... Nf5 {[%clk 0:04:18.8]} 15. d5
{[%clk 0:03:28.1]} 15... Nxe3 {[%clk 0:04:16.3]} 16. Qxe3 {[%clk 0:03:21.5]}
16... h6 {[%clk 0:04:15.7]} 17. Bg4 {[%clk 0:03:16.2]} 17... Nf6 {[%clk
0:04:11.8]} 18. Be6+ {[%clk 0:03:12.3]} 18... Kh8 {[%clk 0:04:11.1]} 19. Rd3
{[%clk 0:03:00.5]} 19... Nxe4 {[%clk 0:04:09.5]} 20. Qxe4 {[%clk 0:02:58.5]}
20... Qg5 {[%clk 0:04:07.7]} 21. Rg3 {[%clk 0:02:53.8]} 21... Qf4 {[%clk
0:04:05.7]} 22. Qxf4 {[%clk 0:02:42.5]} 22... Rxf4 {[%clk 0:04:03.9]} 23. Rg4
{[%clk 0:02:39.1]} 23... Raf8 {[%clk 0:04:02.7]} 24. f3 {[%clk 0:02:24.7]} 24...
h5 {[%clk 0:04:01.8]} 25. Rg5 {[%clk 0:02:13.3]} 25... R8f6 {[%clk 0:03:55.1]}
26. Rxh5+ {[%clk 0:02:05.8]} 26... Rh6 {[%clk 0:03:53.2]} 27. Rf5 {[%clk
0:01:55.7]} 27... Rxf5 {[%clk 0:03:50.1]} 28. Bxf5 {[%clk 0:01:54]} 28... g6
{[%clk 0:03:47.7]} 29. Be4 {[%clk 0:01:52.7]} 29... Kg7 {[%clk 0:03:46.9]} 30.
h3 {[%clk 0:01:49.4]} 30... Ba6 {[%clk 0:03:44.6]} 31. Bd3 {[%clk 0:01:47.2]}
31... Rh4 {[%clk 0:03:43.8]} 32. Ra3 {[%clk 0:01:41.9]} 32... Bxc4 {[%clk
0:03:42.7]} 33. Bxc4 {[%clk 0:01:40.2]} 33... Rxc4 {[%clk 0:03:41.7]} 34. Kf2
{[%clk 0:01:38.7]} 34... g5 {[%clk 0:03:41.1]} 35. Ke3 {[%clk 0:01:37.3]} 35...
Kg6 {[%clk 0:03:39.8]} 36. Kd3 {[%clk 0:01:36.4]} 36... Rf4 {[%clk 0:03:34.6]}
37. Ke3 {[%clk 0:01:34.5]} 37... Kf5 {[%clk 0:03:33.5]} 38. g3 {[%clk 0:01:32]}
38... Rc4 {[%clk 0:03:32.3]} 39. Kd3 {[%clk 0:01:30.8]} 39... Rc5 {[%clk
0:03:29.5]} 40. c4 {[%clk 0:01:29.7]} 40... c6 {[%clk 0:03:28.9]} 41. dxc6
{[%clk 0:01:25.6]} 41... Rxc6 {[%clk 0:03:28.3]} 42. Rb3 {[%clk 0:01:24.4]}
42... Ke6 {[%clk 0:03:26]} 43. Rb5 {[%clk 0:01:22.4]} 43... Rc8 {[%clk
0:03:22.5]} 44. Rxb6 {[%clk 0:01:21]} 44... Rf8 {[%clk 0:03:20.3]} 45. Ke3
{[%clk 0:01:19.5]} 45... Rc8 {[%clk 0:03:19]} 46. Kd3 {[%clk 0:01:17.4]} 46...
Kd7 {[%clk 0:03:17.8]} 47. Rb5 {[%clk 0:01:15.8]} 47... Rh8 {[%clk 0:03:14.6]}
48. h4 {[%clk 0:01:11.5]} 48... gxh4 {[%clk 0:03:13.3]} 49. gxh4 {[%clk
0:01:10.6]} 49... Rxh4 {[%clk 0:03:12.4]} 50. Rxa5 {[%clk 0:01:09.7]} 50... Rf4
{[%clk 0:03:11.5]} 51. Ra7+ {[%clk 0:01:04.7]} 51... Kc6 {[%clk 0:03:09.7]} 52.
a5 {[%clk 0:01:00.1]} 52... Rxf3+ {[%clk 0:03:08.4]} 53. Ke4 {[%clk 0:00:58.4]}
53... Rf4+ {[%clk 0:03:07.4]} 54. Kd3 {[%clk 0:00:57.4]} 54... Rf3+ {[%clk
0:03:05.9]} 55. Ke4 {[%clk 0:00:56.4]} 55... Rc3 {[%clk 0:03:04.8]} 56. Ra6+
{[%clk 0:00:54.2]} 56... Kc5 {[%clk 0:03:04.1]} 57. Ra8 {[%clk 0:00:52.5]} 57...
Rxc4+ {[%clk 0:03:03.4]} 58. Kd3 {[%clk 0:00:51]} 58... Ra4 {[%clk 0:03:02.4]}
59. a6 {[%clk 0:00:47.8]} 59... e4+ {[%clk 0:02:57.9]} 60. Ke3 {[%clk
0:00:46.3]} 60... Kd5 {[%clk 0:02:56.8]} 61. a7 {[%clk 0:00:44.8]} 61... Ra3+
{[%clk 0:02:56.3]} 62. Kd2 {[%clk 0:00:43]} 62... Kd4 {[%clk 0:02:52.5]} 63. Rd8
{[%clk 0:00:39.5]} 63... Ra2+ {[%clk 0:02:51.7]} 64. Kd1 {[%clk 0:00:36.1]}
64... Rxa7 {[%clk 0:02:50.4]} 65. Rxd6+ {[%clk 0:00:34.4]} 65... Ke3 {[%clk
0:02:49.8]} 66. Re6 {[%clk 0:00:32.8]} 66... Ra1+ {[%clk 0:02:45.1]} 67. Kc2
{[%clk 0:00:31.4]} 67... Rh1 {[%clk 0:02:43.6]} 68. Rd6 {[%clk 0:00:29.5]} 68...
Kf3 {[%clk 0:02:41.8]} 69. Re6 {[%clk 0:00:28.6]} 69... e3 {[%clk 0:02:39.8]}
70. Rf6+ {[%clk 0:00:27.9]} 70... Ke2 {[%clk 0:02:38.9]} 71. Re6 {[%clk
0:00:27]} 71... Rh8 {[%clk 0:02:37.2]} 72. Rf6 {[%clk 0:00:26]} 72... Rc8+
{[%clk 0:02:36]} 73. Kb2 {[%clk 0:00:24.7]} 73... Re8 {[%clk 0:02:33.2]} 74. Kc2
{[%clk 0:00:23.7]} 74... Ke1 {[%clk 0:02:31.6]} 75. Rf5 {[%clk 0:00:21.9]} 75...
e2 {[%clk 0:02:30.6]} 76. Kb2 {[%clk 0:00:20.2]} 76... Kd2 {[%clk 0:02:27.5]}
77. Rd5+ {[%clk 0:00:17.5]} 77... Ke3 {[%clk 0:02:26.8]} 78. Rc5 {[%clk
0:00:15.6]} 78... e1=Q {[%clk 0:02:25.4]} 79. Rc3+ {[%clk 0:00:14.8]} 79...
Qxc3+ {[%clk 0:02:24.6]} 80. Kxc3 {[%clk 0:00:14.7]} 80... Rc8+ {[%clk
0:02:23.9]} 81. Kb4 {[%clk 0:00:14.2]} 81... Kd4 {[%clk 0:02:23.4]} 82. Kb5
{[%clk 0:00:14.1]} 82... Rc4 {[%clk 0:02:20.7]} 83. Kb6 {[%clk 0:00:14]} 83...
Rc5 {[%clk 0:02:19.6]} 84. Kb7 {[%clk 0:00:13.1]} 84... Kd5 {[%clk 0:02:18.9]}
85. Kb6 {[%clk 0:00:12.4]} 85... Kd6 {[%clk 0:02:18.4]} 86. Kb7 {[%clk
0:00:11.8]} 86... Rb5+ {[%clk 0:02:17.7]} 87. Ka6 {[%clk 0:00:11]} 87... Kc6
{[%clk 0:02:16.6]} 88. Ka7 {[%clk 0:00:10.1]} 88... Rb6 {[%clk 0:02:15]} 89. Ka8
{[%clk 0:00:09.2]} 89... Kc7 {[%clk 0:02:14.5]} 90. Ka7 {[%clk 0:00:08.4]} 90...
Rc6 {[%clk 0:02:14.4]} 91. Ka8 {[%clk 0:00:07.6]} 91... Ra6# {[%clk 0:02:14.3]}
0-1

[Event "Live Chess"]
[Site "Chess.com"]
[Date "2024.06.02"]
[Round "-"]
[White "Duke_of_Bebington"]
[Black "rekosheten"]
[Result "0-1"]
[WhiteElo "1652"]
[BlackElo "2473"]
[TimeControl "300"]
[EndTime "22:05:23 PDT"]
[Termination "rekosheten won by resignation"]

1. e4 {[%clk 0:04:58.1]} 1... c6 {[%clk 0:04:57.9]} 2. d4 {[%clk 0:04:56.4]}
2... d5 {[%clk 0:04:57.8]} 3. e5 {[%clk 0:04:52.7]} 3... c5 {[%clk 0:04:53]} 4.
c3 {[%clk 0:04:50]} 4... Nc6 {[%clk 0:04:52.9]} 5. Nf3 {[%clk 0:04:45.9]} 5...
Bg4 {[%clk 0:04:47.7]} 6. Be2 {[%clk 0:04:45]} 6... e6 {[%clk 0:04:44.3]} 7. O-O
{[%clk 0:04:43.6]} 7... Nge7 {[%clk 0:04:42.2]} 8. Be3 {[%clk 0:04:41.8]} 8...
Nf5 {[%clk 0:04:38.1]} 9. Nbd2 {[%clk 0:04:37.4]} 9... Be7 {[%clk 0:04:34.8]}
10. h3 {[%clk 0:04:35.6]} 10... Bxf3 {[%clk 0:04:32.6]} 11. Nxf3 {[%clk
0:04:32.5]} 11... O-O {[%clk 0:04:31.3]} 12. Rc1 {[%clk 0:04:22.1]} 12... Qb6
{[%clk 0:04:28.5]} 13. dxc5 {[%clk 0:04:16.5]} 13... Qxb2 {[%clk 0:04:20.1]} 14.
Nd4 {[%clk 0:04:05]} 14... Nxe3 {[%clk 0:04:12.8]} 15. fxe3 {[%clk 0:04:02.5]}
15... Bxc5 {[%clk 0:04:06.4]} 16. Bd3 {[%clk 0:03:52.2]} 16... g6 {[%clk
0:03:55.4]} 17. Bb1 {[%clk 0:03:50.6]} 17... Nxe5 {[%clk 0:03:50.6]} 18. Nb3
{[%clk 0:03:42.7]} 18... Bxe3+ {[%clk 0:03:48]} 0-1